bitfinex/quotes_SOLUSD_20220216
["timestamp","ask_amount","ask_price","bid_price","bid_amount"]
[1645019051529,51.58020742,100.4,100.35,0.09188724]
[1645019051723,4.981,100.39,100.35,0.09188724]
[1645019052341,45.82422359,100.38,100.35,0.09188724]
[1645019052540,46.07422359,100.38,100.35,0.09188724]
[1645019053240,4.9,100.39,100.35,0.09188724]
[1645019053644,1.36374315,100.41,100.35,0.09188724]
[1645019053842,22.949,100.42,100.35,0.09188724]
[1645019053843,24.31274315,100.42,100.35,0.09188724]
[1645019054043,4.98,100.41,100.35,0.09188724]
[1645019054243,24.31274315,100.42,100.35,0.09188724]
[1645019054442,64.34754509,100.42,100.35,0.09188724]
[1645019054642,0.25,100.41,100.35,0.09188724]
[1645019055444,64.34754509,100.42,100.35,0.09188724]
[1645019055642,4.98,100.41,100.35,0.09188724]
[1645019055844,64.34754509,100.42,100.35,0.09188724]
[1645019056146,62.98380194,100.42,100.35,0.09188724]
[1645019056344,22.949,100.42,100.37,0.21]
[1645019056544,47.5662,100.43,100.37,0.21]
[1645019056945,48.92994315,100.43,100.37,0.21]
[1645019057347,39.50247837,100.4,100.37,0.21]
[1645019058045,40.86622152,100.4,100.37,0.21]
[1645019058846,1.36374315,100.4,100.37,0.21]
[1645019059146,1.36374315,100.42,100.37,0.21]
[1645019059947,46.11216154,100.41,100.37,0.21]
[1645019060548,51.09216154,100.41,100.37,0.21]
[1645019061047,4.98,100.41,100.37,0.21]
[1645019061948,0.25,100.4,100.37,0.21]
[1645019062549,26.02784315,100.43,100.37,0.21]
[1645019062751,1.36374315,100.43,100.37,0.21]
[1645019062950,6.0,100.48,100.37,0.21]
[1645019062951,1.36374315,100.44,100.37,0.21]
[1645019063153,1.36374315,100.46,100.37,0.21]
[1645019063553,4.979,100.45,100.37,0.21]
[1645019063755,44.92942729,100.46,100.39,98.08]
[1645019063953,44.92942729,100.46,100.4,48.62506012]
[1645019064754,1.36374315,100.46,100.4,48.62506012]
[1645019064957,0.25,100.45,100.4,48.62506012]
[1645019065454,4.978,100.44,100.4,48.62506012]
[1645019066057,44.50713781,100.45,100.37,0.21]
[1645019066267,45.87088096,100.45,100.37,0.21]
[1645019066456,1.36374315,100.44,100.37,0.21]
[1645019066856,1.36374315,100.43,100.37,0.21]
[1645019067256,1.36374315,100.44,100.37,0.21]
[1645019067657,4.979,100.43,100.37,0.21]
[1645019067859,43.51341835,100.43,100.37,0.21]
[1645019068659,44.8771615,100.43,100.37,0.21]
[1645019068963,1.36374315,100.41,100.37,0.21]
[1645019069160,7.23774315,100.41,100.37,0.21]
[1645019069960,40.73118585,100.4,100.37,0.21]
[1645019070763,1.36374315,100.39,100.37,0.21]
[1645019071571,1.36374315,100.4,100.37,0.21]
[1645019071769,1.36374315,100.39,100.37,0.21]
[1645019072168,55.49695909,100.42,100.37,0.21]
[1645019072169,1.36374315,100.38,100.37,0.21]
[1645019072370,55.49695909,100.42,100.37,0.21]
[1645019072371,37.25069358,100.39,100.37,0.21]
[1645019072771,4.981,100.38,100.37,0.21]
[1645019072970,1.36374315,100.39,100.37,0.21]
[1645019073371,1.36374315,100.4,100.37,0.21]
[1645019073569,42.15839347,100.43,100.37,0.21]
[1645019073570,1.36374315,100.41,100.37,0.21]
[1645019074072,39.31708702,100.4,100.37,0.21]
[1645019074270,40.68083017,100.4,100.37,0.21]
[1645019074769,33.25167384,100.43,100.38,0.03383204]
[1645019074770,1.36374315,100.41,100.38,0.03383204]
[1645019075268,0.25,100.4,100.38,0.03383204]
[1645019075470,1.36374315,100.41,100.38,0.03383204]
[1645019076070,1.36374315,100.42,100.38,0.03383204]
[1645019076675,1.36374315,100.43,100.38,0.03383204]
[1645019076870,6.34274315,100.43,100.38,0.03383204]
[1645019077270,38.31470126,100.42,100.38,0.03383204]
[1645019077674,39.67844441,100.42,100.38,0.03383204]
[1645019078075,0.25,100.41,100.37,0.21]
[1645019078275,5.23,100.41,100.37,0.21]
[1645019078478,0.25,100.41,100.37,0.21]
[1645019079072,1.61374315,100.41,100.37,0.21]
[1645019079275,0.25,100.41,100.37,0.21]
[1645019079475,1.36374315,100.42,100.37,0.21]
[1645019079673,4.98,100.41,100.37,0.21]
[1645019080673,1.36374315,100.42,100.37,0.21]
[1645019080873,4.98,100.41,100.37,0.21]
[1645019081076,1.36374315,100.42,100.37,0.21]
[1645019081472,4.98,100.41,100.37,0.21]
[1645019082375,45.94819059,100.41,100.37,0.21]
[1645019082574,0.25,100.4,100.37,0.21]
[1645019082775,0.25,100.4,100.38,0.69717814]
[1645019083374,1.61374315,100.4,100.37,0.21]
[1645019084273,36.10149523,100.39,100.37,0.21]
[1645019085375,37.46523838,100.39,100.37,0.21]
[1645019086178,36.10149523,100.39,100.37,0.21]
[1645019086479,37.46523838,100.39,100.37,0.21]
[1645019087082,36.10149523,100.39,100.37,0.21]
[1645019087484,1.61374315,100.4,100.37,0.21]
[1645019087882,0.25,100.4,100.37,0.21]
[1645019088484,1.36374315,100.41,100.37,0.21]
[1645019088885,4.98,100.4,100.37,0.21]
[1645019089086,1.36374315,100.42,100.38,0.69717814]
[1645019089284,1.36374315,100.44,100.38,0.69717814]
[1645019089689,1.36374315,100.43,100.38,0.69717814]
[1645019089886,45.46385787,100.43,100.39,48.16191456]
[1645019090089,44.10011472,100.43,100.39,48.16191456]
[1645019090789,1.36374315,100.44,100.39,48.16191456]
[1645019091089,1.36374315,100.45,100.39,146.24191456]
[1645019091291,6.0,100.44,100.39,146.24191456]
[1645019091893,52.75464621,100.44,100.39,146.24191456]
[1645019092690,46.75464621,100.44,100.37,0.21]
[1645019093092,6.0,100.43,100.37,0.21]
[1645019093294,7.36374315,100.43,100.37,0.21]
[1645019093709,36.93195075,100.42,100.37,0.21]
[1645019093910,48.06502679,100.4,100.37,0.21]
[1645019094109,1.61374315,100.42,100.38,0.69503288]
[1645019094311,7.36374315,100.43,100.38,0.69503288]
[1645019094510,5.229,100.42,100.38,0.69503288]
[1645019095111,36.37396644,100.41,100.38,0.69503288]
[1645019095511,36.37396644,100.41,100.37,0.21]
[1645019096312,37.73770959,100.41,100.37,0.21]
[1645019096516,1.36374315,100.4,100.37,0.21]
[1645019096715,1.36374315,100.38,100.37,0.21]
[1645019096914,16.31444315,100.38,100.35,0.09188724]
[1645019097114,38.0754158,100.37,100.35,0.09188724]
[1645019097527,39.43915895,100.37,100.35,0.09188724]
[1645019097720,94.09,100.35,100.32,0.18377448]
[1645019098015,1.36374315,100.36,100.32,0.18377448]
[1645019098216,46.27776112,100.34,100.32,0.18377448]
[1645019098820,95.0,100.33,100.31,0.4768584]
[1645019099017,69.90814594,100.34,100.31,0.21861888]
[1645019099217,14.9614,100.33,100.31,0.21861888]
[1645019099618,35.33518349,100.32,100.31,0.21861888]
[1645019100221,35.33518349,100.32,100.31,0.00861888]
[1645019100422,42.31718349,100.32,100.31,0.00861888]
[1645019101221,4.9,100.32,100.31,0.00861888]
[1645019101420,4.9,100.32,100.31,2.32476718]
[1645019102423,40.97820687,100.35,100.31,2.32476718]
[1645019103426,0.25,100.34,100.31,2.32476718]
[1645019104227,2.32085199,100.33,100.3,26.91055425]
[1645019104429,0.25,100.34,100.3,26.91055425]
[1645019105027,4.983,100.35,100.3,26.91055425]
[1645019105232,4.983,100.35,100.3,132.03555425]
[1645019106029,4.983,100.35,100.3,33.95555425]
[1645019106431,4.983,100.35,100.3,124.99055425]
[1645019107033,1.36374315,100.4,100.33,98.08]
[1645019107233,1.36374315,100.4,100.35,98.08]
[1645019107433,36.99279086,100.42,100.34,136.22839966]
[1645019107632,36.99279086,100.42,100.34,38.14839966]
[1645019108231,51.93759086,100.42,100.31,0.43723776]
[1645019108431,7.36374315,100.41,100.31,0.43723776]
[1645019108632,1.36374315,100.4,100.31,0.43723776]
[1645019109232,40.79513101,100.39,100.31,98.51723776]
[1645019109433,40.79513101,100.39,100.32,140.8049151]
[1645019110436,40.54513101,100.39,100.32,140.8049151]
[1645019112335,40.54513101,100.39,100.32,42.7249151]
[1645019112835,0.25,100.38,100.32,42.7249151]
[1645019113436,0.25,100.4,100.33,98.08]
[1645019113639,0.25,100.4,100.33,98.33]
[1645019114241,0.25,100.4,100.35,98.08]
[1645019114440,50.29120894,100.41,100.36,46.90892368]
[1645019114641,4.981,100.39,100.36,46.90892368]
[1645019114941,6.0,100.41,100.36,46.90892368]
[1645019115547,6.0,100.41,100.36,144.98892368]
[1645019115741,6.0,100.41,100.36,143.48892368]
[1645019115944,6.0,100.41,100.36,45.40892368]
[1645019116945,34.41450084,100.4,100.36,143.48892368]
[1645019117245,0.25,100.39,100.31,12.30723776]
[1645019117445,5.232,100.39,100.31,12.30723776]
[1645019117644,0.25,100.39,100.31,12.30723776]
[1645019118047,34.41450084,100.4,100.35,98.08]
[1645019118244,4.982,100.39,100.35,98.08]
[1645019118644,4.982,100.39,100.36,48.56109281]
[1645019118846,34.41450084,100.4,100.37,0.13011498]
[1645019119045,4.98,100.39,100.37,0.13011498]
[1645019119851,34.41450084,100.4,100.37,0.13011498]
[1645019120554,2.32085199,100.39,100.37,0.13011498]
[1645019120753,4.981,100.4,100.37,0.13011498]
[1645019120955,4.981,100.4,100.38,0.83034219]
[1645019121355,6.0,100.41,100.38,0.83034219]
[1645019121550,46.79101834,100.41,100.38,0.83034219]
[1645019121750,2.32085199,100.4,100.38,0.83034219]
[1645019122351,4.98,100.39,100.38,0.83034219]
[1645019122653,47.48385356,100.39,100.38,0.83034219]
[1645019123056,2.32085199,100.4,100.38,0.83034219]
[1645019123754,6.0,100.41,100.38,0.83034219]
[1645019123953,6.0,100.41,100.39,0.21134798]
[1645019124154,6.0,100.41,100.39,41.85448673]
[1645019127180,6.0,100.41,100.4,0.83034219]
[1645019127456,10.979,100.41,100.4,0.83034219]
[1645019128257,6.0,100.41,100.4,0.83034219]
[1645019130260,1.36374315,100.45,100.4,0.83034219]
[1645019130459,1.36374315,100.46,100.4,0.83034219]
[1645019130661,7.36374315,100.46,100.4,0.83034219]
[1645019131062,36.10539558,100.45,100.4,0.83034219]
[1645019132161,34.60539558,100.45,100.4,0.83034219]
[1645019132861,4.978,100.44,100.4,0.83034219]
[1645019133262,39.64549736,100.43,100.4,0.83034219]
[1645019133465,39.64549736,100.43,100.41,0.21134798]
[1645019133666,6.0,100.46,100.41,0.21134798]
[1645019133865,0.25,100.45,100.42,0.83034219]
[1645019134690,46.39304305,100.45,100.42,0.83034219]
[1645019134862,46.39304305,100.45,100.43,0.17056704]
[1645019135266,6.0,100.46,100.43,0.17056704]
[1645019135464,4.977,100.46,100.43,0.17056704]
[1645019135666,0.25,100.45,100.43,0.17056704]
[1645019136064,5.75,100.46,100.43,0.17056704]
[1645019136669,2.82085199,100.45,100.43,0.17056704]
[1645019136867,48.03899204,100.45,100.43,0.17056704]
[1645019137068,54.64699204,100.45,100.44,0.83034219]
[1645019137267,54.64699204,100.45,100.36,123.8801]
[1645019137470,54.64699204,100.45,100.36,49.7885]
[1645019137669,54.64699204,100.45,100.38,14.9376]
[1645019137869,0.25,100.44,100.38,14.9376]
[1645019138367,0.25,100.44,100.34,49.5348]
[1645019138570,4.98,100.43,100.34,49.5348]
[1645019138773,4.98,100.43,100.33,74.0738]
[1645019139167,40.37499192,100.42,100.35,133.88481947]
[1645019139769,40.37499192,100.42,100.36,113.0208]
[1645019139969,0.25,100.44,100.37,39.08003158]
[1645019141869,0.25,100.44,100.37,54.01913158]
[1645019142070,1.61374315,100.44,100.37,54.01913158]
[1645019142296,1.11374315,100.44,100.37,54.01913158]
[1645019142495,1.11374315,100.44,100.37,152.09913158]
[1645019142800,20.6872,100.46,100.37,152.09913158]
[1645019142995,20.6872,100.46,100.38,4.979]
[1645019143197,10.729,100.46,100.37,152.09913158]
[1645019143495,5.75,100.46,100.39,98.08]
[1645019143901,5.75,100.46,100.4,39.74411161]
[1645019144097,4.978,100.45,100.4,137.82411161]
[1645019144397,5.75,100.46,100.4,137.82411161]
[1645019144597,10.728,100.46,100.4,137.82411161]
[1645019144996,10.728,100.46,100.4,152.75901161]
[1645019145198,5.75,100.46,100.4,152.75901161]
[1645019146299,4.978,100.45,100.4,152.75901161]
[1645019146600,5.75,100.46,100.4,152.75901161]
[1645019147000,38.0378,100.49,100.4,152.75901161]
[1645019147199,6.0,100.48,100.4,152.75901161]
[1645019147902,52.51388731,100.48,100.4,152.75901161]
[1645019148703,6.0,100.48,100.4,152.75901161]
[1645019148903,0.25,100.47,100.4,152.75901161]
[1645019150506,6.0,100.48,100.4,152.75901161]
[1645019151711,6.0,100.49,100.41,0.25]
[1645019151911,6.0,100.49,100.44,98.08]
[1645019152310,6.0,100.49,100.45,40.47309801]
[1645019152610,23.4294,100.51,100.45,40.47309801]
[1645019152816,6.0,100.5,100.45,40.47309801]
[1645019153210,6.0,100.5,100.45,55.40099801]
[1645019154314,0.25,100.49,100.45,153.48099801]
[1645019154513,0.25,100.49,100.45,55.40099801]
[1645019156716,14.9281,100.52,100.45,153.48099801]
[1645019156920,2.73357145,100.53,100.46,0.25]
[1645019157116,2.73357145,100.55,100.49,98.08]
[1645019157316,8.39063186,100.56,100.49,98.08]
[1645019157520,17.65577145,100.57,100.49,98.08]
[1645019157813,17.65577145,100.57,100.46,6.25]
[1645019157814,45.04251606,100.56,100.5,43.85693939]
[1645019158215,32.02397126,100.59,100.51,112.9995]
[1645019158415,29.29039981,100.59,100.51,112.9995]
[1645019158616,6.0,100.58,100.51,112.9995]
[1645019158819,6.0,100.58,100.52,103.052]
[1645019159115,6.0,100.58,100.52,98.08]
[1645019159315,45.19735322,100.57,100.48,11.87]
[1645019159524,50.65435322,100.57,100.43,50.60262861]
[1645019159816,0.25,100.56,100.43,50.60262861]
[1645019160015,0.25,100.56,100.43,48.3632]
[1645019160217,14.37229981,100.55,100.45,103.054]
[1645019160418,14.9266,100.54,100.46,61.49542909]
[1645019160619,42.29612532,100.53,100.46,61.49542909]
[1645019160820,37.32212532,100.53,100.46,61.49542909]
[1645019161421,14.924,100.55,100.47,113.004]
[1645019161618,24.6291,100.57,100.47,113.254]
[1645019161818,24.6291,100.57,100.47,15.174]
[1645019162021,4.974,100.56,100.47,15.174]
[1645019162219,24.6291,100.57,100.47,15.174]
[1645019162421,35.48863671,100.55,100.48,141.09437428]
[1645019162722,24.6291,100.57,100.49,113.0015]
[1645019163325,24.6291,100.57,100.49,14.9215]
[1645019163724,40.69117294,100.56,100.5,35.27804553]
[1645019164025,4.973,100.55,100.5,133.35804553]
[1645019164225,24.6291,100.57,100.5,50.19894553]
[1645019164425,4.973,100.56,100.5,148.27894553]
[1645019165529,24.6291,100.57,100.5,148.27894553]
[1645019166828,48.74553939,100.56,100.5,148.27894553]
[1645019167029,4.973,100.55,100.5,148.27894553]
[1645019167428,41.14892102,100.54,100.5,14.9209]
[1645019167629,41.14892102,100.54,100.46,22.5045]
[1645019167830,41.14892102,100.54,100.45,11.87]
[1645019168452,41.14892102,100.54,100.47,98.08]
[1645019168657,154.64892102,100.54,100.48,34.56687223]
[1645019168860,113.5,100.54,100.48,49.49047223]
[1645019169264,4.974,100.53,100.49,0.25]
[1645019169463,24.6291,100.57,100.49,98.33]
[1645019169863,24.6291,100.57,100.5,143.33646406]
[1645019170067,6.0,100.58,100.5,158.25576406]
[1645019170462,6.0,100.58,100.51,0.25]
[1645019170669,70.11,100.6,100.51,0.25]
[1645019171068,38.58105955,100.58,100.52,14.9167]
[1645019171266,38.58105955,100.58,100.53,34.52960364]
[1645019171867,70.11,100.6,100.53,34.52960364]
[1645019172068,47.6072,100.6,100.53,34.52960364]
[1645019172276,6.0,100.59,100.53,132.60960364]
[1645019172475,47.6072,100.6,100.53,132.60960364]
[1645019172668,47.6072,100.6,100.53,147.52510364]
[1645019173069,47.98480016,100.59,100.53,147.52510364]
[1645019173270,47.6072,100.6,100.53,147.52510364]
[1645019173969,4.971,100.59,100.53,147.52510364]
[1645019174769,95.22744333,100.6,100.53,147.52510364]
[1645019175372,47.6072,100.6,100.53,147.52510364]
[1645019175573,47.6072,100.6,100.53,159.39510364]
[1645019175772,113.5,100.61,100.53,159.39510364]
[1645019175973,5.221,100.6,100.53,159.39510364]
[1645019176478,47.4135,100.64,100.54,0.25]
[1645019176673,47.4135,100.64,100.58,98.08]
[1645019176873,143.0483,100.65,100.58,98.08]
[1645019177274,189.93334722,100.65,100.6,98.08]
[1645019177479,160.38504722,100.65,100.59,146.19829736]
[1645019177674,6.0,100.64,100.59,146.19829736]
[1645019177874,0.00229981,100.68,100.63,98.08]
[1645019178076,0.21452712,100.72,100.65,98.08]
[1645019178274,0.21452712,100.72,100.66,0.25]
[1645019178481,0.21452712,100.72,100.67,98.08]
[1645019178775,0.21452712,100.72,100.68,149.15799337]
[1645019178973,0.21452712,100.72,100.68,148.90799337]
[1645019179174,0.21452712,100.72,100.69,0.25]
[1645019179474,0.21452712,100.72,100.7,12.08134798]
[1645019179702,0.21452712,100.72,100.7,0.21134798]
[1645019179899,2.82085199,100.71,100.7,0.21134798]
[1645019180102,2.82085199,100.71,100.62,23.7342]
[1645019180103,2.82085199,100.71,100.65,11.87]
[1645019180499,0.21452712,100.72,100.65,11.87]
[1645019180701,6.21452712,100.72,100.65,11.87]
[1645019180900,6.21452712,100.72,100.66,34.4686605]
[1645019180901,4.965,100.71,100.66,34.4686605]
[1645019181109,6.21452712,100.72,100.66,34.4686605]
[1645019181801,0.25,100.71,100.66,34.4686605]
[1645019182202,0.25,100.71,100.63,26.7681]
[1645019182203,36.43289187,100.71,100.63,26.7681]
[1645019182403,36.43289187,100.71,100.61,11.87]
[1645019182606,36.43289187,100.71,100.59,11.87]
[1645019183202,36.43289187,100.71,100.6,36.54423301]
[1645019183403,4.966,100.7,100.6,51.44683301]
[1645019183601,39.46706423,100.69,100.6,63.31683301]
[1645019184103,39.46706423,100.69,100.6,161.39683301]
[1645019184301,39.46706423,100.69,100.6,63.31683301]
[1645019184502,53.39912712,100.72,100.6,63.31683301]
[1645019184905,53.39912712,100.72,100.6,65.55687877]
[1645019185107,53.39912712,100.72,100.65,98.08]
[1645019185303,53.39912712,100.72,100.65,109.95]
[1645019185503,99.13215669,100.72,100.66,44.06310371]
[1645019185903,51.94755669,100.72,100.66,44.06310371]
[1645019186303,4.965,100.71,100.66,44.06310371]
[1645019186505,21.4659,100.71,100.55,171.8627]
[1645019186703,69.1936,100.71,100.58,11.87]
[1645019186903,0.25,100.7,100.58,11.87]
[1645019187304,51.94755669,100.72,100.59,2.24004576]
[1645019187506,51.94755669,100.72,100.6,50.09193884]
[1645019188409,51.94755669,100.72,100.62,14.8995]
[1645019188610,51.94755669,100.72,100.64,98.08]
[1645019188815,6.21452712,100.72,100.65,141.26731675]
[1645019190415,0.25,100.71,100.65,141.26731675]
[1645019190613,6.21452712,100.72,100.65,141.26731675]
[1645019190817,0.21452712,100.72,100.65,153.13731675]
[1645019191017,0.21452712,100.72,100.65,168.03181675]
[1645019192415,0.21452712,100.72,100.65,167.78181675]
[1645019193019,4.965,100.71,100.65,167.78181675]
[1645019193218,0.21452712,100.72,100.65,227.40181675]
[1645019193917,0.21452712,100.72,100.66,0.25]
[1645019194117,4.965,100.71,100.69,136.41548656]
[1645019194317,4.965,100.71,100.69,38.33548656]
[1645019194617,0.21452712,100.72,100.69,38.33548656]
[1645019196221,6.46452712,100.72,100.7,0.13440829]
[1645019196420,2.82085199,100.71,100.69,38.33548656]
[1645019196918,2.82085199,100.71,100.65,26.7643]
[1645019197122,2.82085199,100.71,100.64,11.87]
[1645019197320,2.82085199,100.71,100.62,47.2949]
[1645019197524,10.46385199,100.71,100.62,24.3902]
[1645019197920,42.24458959,100.7,100.63,44.0482663]
[1645019198621,40.51311266,100.68,100.63,44.0482663]
[1645019198819,3.166,100.67,100.63,44.0482663]
[1645019199221,56.6971,100.71,100.58,11.87]
[1645019199422,87.0,100.66,100.57,44.262708]
[1645019199623,8.39,100.67,100.58,109.95]
[1645019199822,8.39,100.67,100.58,98.08]
[1645019200223,38.1525087,100.66,100.58,44.04633882]
[1645019200424,47.41271767,100.64,100.58,44.04633882]
[1645019200630,53.95271767,100.64,100.58,44.04633882]
[1645019201530,6.54,100.64,100.58,44.04633882]
[1645019201727,0.25,100.65,100.58,44.04633882]
[1645019202531,43.21104631,100.65,100.58,44.04633882]
[1645019202932,3.212,100.64,100.58,44.04633882]
[1645019203235,3.212,100.64,100.58,142.12633882]
[1645019203433,0.25,100.65,100.58,44.04633882]
[1645019203635,18.079,100.68,100.58,44.04633882]
[1645019204432,47.89231682,100.67,100.58,44.04633882]
[1645019204635,3.177,100.66,100.58,58.95453882]
[1645019204834,39.51847172,100.65,100.58,58.95453882]
[1645019205037,3.178,100.64,100.58,58.95453882]
[1645019205435,39.51847172,100.65,100.58,58.95453882]
[1645019205638,14.9072,100.68,100.59,0.25]
[1645019205842,48.3056,100.69,100.6,14.9052]
[1645019206056,6.0,100.67,100.6,14.9052]
[1645019206656,6.0,100.67,100.61,41.49233657]
[1645019206855,43.92058973,100.66,100.61,41.49233657]
[1645019207756,48.3056,100.69,100.61,41.49233657]
[1645019207957,3.202,100.68,100.61,51.42933657]
[1645019208157,48.3056,100.69,100.61,36.52433657]
[1645019208557,48.3056,100.69,100.62,4.966]
[1645019208760,48.3056,100.69,100.61,36.52433657]
[1645019208761,48.173906,100.68,100.61,36.52433657]
[1645019208959,48.423906,100.68,100.61,36.52433657]
[1645019209167,6.0,100.67,100.61,36.52433657]
[1645019209359,42.88811876,100.66,100.61,36.52433657]
[1645019210058,3.205,100.65,100.61,36.52433657]
[1645019210261,42.88811876,100.66,100.61,36.52433657]
[1645019210869,6.0,100.67,100.61,36.52433657]
[1645019211959,43.89308582,100.67,100.61,36.52433657]
[1645019212360,0.25,100.66,100.61,36.52433657]
[1645019213563,43.89308582,100.67,100.61,36.52433657]
[1645019213959,6.0,100.67,100.61,36.52433657]
[1645019214160,6.0,100.67,100.61,51.42983657]
[1645019214764,3.18,100.66,100.61,51.42983657]
[1645019215364,0.25,100.65,100.61,51.42983657]
[1645019215562,6.0,100.67,100.61,51.42983657]
[1645019215762,6.0,100.67,100.62,4.968]
[1645019215962,6.0,100.67,100.62,0.25]
[1645019216166,6.0,100.67,100.63,14.9006]
[1645019216362,6.0,100.67,100.64,44.65087362]
[1645019216562,6.0,100.67,100.65,0.21134798]
[1645019218767,6.0,100.67,100.65,15.11104798]
[1645019218966,24.5635,100.71,100.65,15.11104798]
[1645019219165,0.21452712,100.72,100.65,15.11104798]
[1645019219365,0.21452712,100.72,100.66,0.25]
[1645019219564,43.56497825,100.72,100.66,45.14336121]
[1645019220671,43.56497825,100.72,100.66,60.04156121]
[1645019221169,6.21452712,100.72,100.66,60.04156121]
[1645019221976,6.21452712,100.72,100.66,158.12156121]
[1645019223472,6.21452712,100.72,100.66,60.04156121]
[1645019223670,0.21452712,100.72,100.68,51.98320244]
[1645019224070,0.21452712,100.72,100.69,98.08]
[1645019224271,0.21452712,100.72,100.7,98.29134798]
[1645019224471,0.21452712,100.72,100.7,0.21134798]
[1645019224695,0.42905424,100.72,100.71,98.08]
[1645019224872,1.35089166,100.73,100.72,37.94260992]
[1645019226380,0.94465498,100.76,100.72,151.1233579]
[1645019226583,0.94465498,100.76,100.72,136.2339579]
[1645019226778,3.145,100.75,100.72,136.2339579]
[1645019226979,6.94465498,100.76,100.72,136.2339579]
[1645019227180,3.149,100.75,100.72,136.2339579]
[1645019227581,6.94465498,100.76,100.72,136.2339579]
[1645019227980,6.94465498,100.76,100.73,117.9309]
[1645019228181,0.94465498,100.76,100.73,117.9309]
[1645019228381,1.2344866,100.77,100.74,98.29134798]
[1645019228581,1.2344866,100.77,100.74,98.08]
[1645019228782,1.2344866,100.77,100.72,37.94260992]
[1645019228984,1.2344866,100.77,100.73,14.8857]
[1645019228985,46.13307112,100.77,100.73,14.8857]
[1645019229182,0.25,100.76,100.73,14.8857]
[1645019229582,6.25,100.76,100.74,0.21134798]
[1645019230285,6.25,100.76,100.74,43.75507505]
[1645019231284,6.25,100.76,100.74,48.71707505]
[1645019231688,6.25,100.76,100.74,0.21134798]
[1645019232684,3.03085199,100.75,100.69,44.48397523]
[1645019232985,41.6713087,100.74,100.69,44.48397523]
[1645019233184,3.172,100.73,100.63,23.9764]
[1645019233388,5.194,100.73,100.61,11.87]
[1645019233585,22.53417527,100.73,100.65,14.9002]
[1645019233787,2.44017527,100.72,100.65,14.9002]
[1645019234187,2.44017527,100.72,100.66,34.77096806]
[1645019234984,17.34097527,100.72,100.66,34.77096806]
[1645019235390,45.1201944,100.71,100.66,34.77096806]
[1645019235584,45.1201944,100.71,100.67,4.965]
[1645019236190,62.46216967,100.71,100.67,4.965]
[1645019236392,62.46216967,100.71,100.61,49.6726]
[1645019236588,70.54816967,100.71,100.61,49.6726]
[1645019236791,70.54816967,100.71,100.62,4.966]
[1645019237188,60.0219944,100.71,100.63,135.38286017]
[1645019237391,45.1201944,100.71,100.63,150.28606017]
[1645019237592,45.1201944,100.71,100.64,4.966]
[1645019237792,2.44017527,100.73,100.64,4.966]
[1645019238390,3.17,100.72,100.66,14.8974]
[1645019238591,24.0197,100.74,100.67,11.87]
[1645019238789,0.25,100.73,100.68,4.964]
[1645019238993,5.808,100.73,100.65,11.87]
[1645019239192,2.44017527,100.72,100.6,11.87]
[1645019239394,2.44017527,100.72,100.61,122.6936]
[1645019239826,46.86410715,100.71,100.62,47.36075606]
[1645019240025,46.86410715,100.71,100.63,4.966]
[1645019240321,49.30428242,100.71,100.64,47.11894513]
[1645019240519,49.30428242,100.71,100.64,62.01934513]
[1645019240719,49.30428242,100.71,100.66,36.49883627]
[1645019241420,3.165,100.7,100.66,36.49883627]
[1645019241820,41.66604973,100.69,100.64,14.9018]
[1645019242023,41.66604973,100.69,100.64,19.8678]
[1645019242421,41.66604973,100.69,100.64,14.9018]
[1645019242822,3.18,100.68,100.64,55.74889106]
[1645019243425,41.66604973,100.69,100.64,55.74889106]
[1645019243827,244.08,100.68,100.44,557.70872732]
[1645019244026,103.08,100.64,100.48,7.0]
[1645019244227,5.19222653,100.61,100.48,7.0]
[1645019244431,5.19222653,100.61,100.47,107.4704]
[1645019244629,5.19222653,100.61,100.48,98.08]
[1645019244828,39.12411597,100.6,100.5,98.08]
[1645019245027,47.32411597,100.6,100.51,42.23998679]
[1645019245429,49.76429124,100.6,100.51,42.23998679]